bitfinex-derivatives/quotes_ETHF0:USTF0_20250606
["timestamp","ask_amount","ask_price","bid_price","bid_amount"]
[1749253525242,1.48469,2480.7,2480.6,5.53663]
[1749253525541,2.15699,2480.7,2480.6,5.53663]
[1749253525931,1.3514,2480.7,2480.6,5.53663]
[1749253526740,2.15699,2480.7,2480.6,5.53663]
[1749253527642,1.3514,2480.7,2480.6,5.53663]
[1749253528137,2.15699,2480.7,2480.6,5.53663]
[1749253528342,1.3514,2480.7,2480.6,5.53663]
[1749253530437,2.15699,2480.7,2480.6,5.53663]
[1749253530843,1.3514,2480.7,2480.6,5.53663]
[1749253531843,2.15699,2480.7,2480.6,5.53663]
[1749253532046,1.3514,2480.7,2480.6,5.53663]
[1749253534247,0.6791,2480.7,2480.6,5.53663]
[1749253534543,0.80555,2480.9,2480.8,0.80556]
[1749253534743,2.67082737,2480.9,2480.8,0.80556]
[1749253535649,0.80556,2480.8,2480.7,0.80557]
[1749253535949,0.8056,2480.7,2480.6,5.5366]
[1749253536346,0.80559,2480.8,2480.7,0.80559]
[1749253536547,2.01992346,2480.8,2480.7,0.80559]
[1749253540659,0.8056,2480.7,2480.6,5.5366]
[1749253541147,0.8056,2480.7,2480.6,5.53661]
[1749253542649,2.02187618,2480.7,2480.6,5.53661]
[1749253543050,2.02187618,2480.7,2480.6,4.731]
[1749253543444,0.8056,2480.7,2480.6,5.53663]
[1749253543656,2.02188102,2480.7,2480.6,5.53663]
[1749253544345,2.02188102,2480.7,2480.6,4.731]
[1749253544548,2.02188102,2480.7,2480.6,5.53663]
[1749253544950,2.02188102,2480.7,2480.6,4.731]
[1749253546555,2.02188102,2480.7,2480.6,5.53663]
[1749253547459,2.02188102,2480.7,2480.6,4.731]
[1749253548249,0.80566,2480.5,2480.4,0.80567]
[1749253548448,0.80569,2480.4,2480.3,1.44701]
[1749253548646,0.80569,2480.4,2480.3,0.80571]
[1749253548852,0.80569,2480.4,2480.1,0.00604924]
[1749253548853,0.80576,2480.2,2480.1,0.81182924]
[1749253549049,2.02289828,2480.2,2480.1,0.81182924]
[1749253550955,0.80576,2480.2,2480.1,0.81182924]
[1749253551462,0.687,2480.3,2480.1,0.00604924]
[1749253551665,1.49274,2480.3,2480.2,0.80576]
[1749253551862,2.70971297,2480.3,2480.2,0.80576]
[1749253552056,2.70971297,2480.3,2480.1,0.00604924]
[1749253552262,0.80576,2480.2,2480.1,0.81182924]
[1749253552759,1.49276,2480.3,2480.2,0.80576]
[1749253552961,2.71099193,2480.3,2480.2,0.80576]
[1749253555360,1.90523193,2480.3,2480.2,0.80576]
[1749253555557,3.2078,2480.7,2480.2,0.80576]
[1749253555558,4.01341,2480.7,2480.2,0.80576]
[1749253555764,2.02408371,2480.6,2480.5,0.80564]
[1749253555963,1.21845371,2480.6,2480.5,0.80564]
[1749253556163,2.02408371,2480.6,2480.5,0.80564]
[1749253556870,1.21845371,2480.6,2480.5,0.80564]
[1749253558371,2.02408371,2480.6,2480.5,0.80564]
[1749253559269,0.80567,2480.5,2480.4,0.80567]
[1749253559470,2.02412371,2480.5,2480.4,0.80567]
[1749253559667,1.21845371,2480.5,2480.4,0.80567]
[1749253559864,1.21845371,2480.5,2480.3,10.48]
[1749253560065,0.80568,2480.5,2480.4,0.80569]
[1749253560274,2.02455752,2480.5,2480.4,0.80569]
[1749253560874,0.80569,2480.4,2480.3,8.07792]
[1749253561066,2.02456752,2480.4,2480.3,8.07792]
[1749253561671,1.21887752,2480.4,2480.3,8.07792]
[1749253562373,0.80568,2480.5,2480.4,0.80569]
[1749253562573,2.02445361,2480.5,2480.4,0.80569]
[1749253563778,1.21877361,2480.5,2480.4,0.80569]
[1749253563979,1.21877361,2480.5,2480.4,2.13439]
[1749253564572,0.80565,2480.6,2480.5,0.80565]
[1749253564871,1.21930437,2480.6,2480.5,0.80565]
[1749253565174,0.6637,2480.8,2480.7,0.8056]
[1749253565370,1.8831441,2480.8,2480.7,0.8056]
[1749253566080,1.8831441,2480.8,2480.6,4.01341]
[1749253566268,0.6637,2480.8,2480.6,4.01341]
[1749253566473,1.46928,2480.8,2480.7,0.8056]
[1749253566670,2.68894798,2480.8,2480.7,0.6761]
[1749253566872,2.68894798,2480.8,2480.7,1.4817]
[1749253568579,1.88336798,2480.8,2480.7,1.4817]
[1749253569473,2.68892798,2480.8,2480.7,1.4817]
[1749253569673,2.02522798,2480.8,2480.7,1.4817]
[1749253569972,1.21966798,2480.8,2480.7,2.7926]
[1749253570574,2.02522798,2480.8,2480.7,2.7926]
[1749253570784,1.21966798,2480.8,2480.7,2.7926]
[1749253571277,2.02522798,2480.8,2480.7,2.7926]
[1749253572076,1.21966798,2480.8,2480.7,2.7926]
[1749253572677,2.02522798,2480.8,2480.7,2.7926]
[1749253573577,1.21966798,2480.8,2480.7,2.7926]
[1749253574979,2.02522798,2480.8,2480.7,2.7926]
[1749253575182,2.02866168,2480.8,2480.7,2.7926]
[1749253575478,1.22310168,2480.8,2480.7,2.7926]
[1749253575778,2.02867168,2480.8,2480.7,2.7926]
[1749253576678,2.0286885,2480.8,2480.7,1.987]
[1749253576978,1.2231185,2480.8,2480.7,2.79258]
[1749253577378,2.0286885,2480.8,2480.7,2.79258]
[1749253577578,1.2231185,2480.8,2480.7,2.79258]
[1749253578681,0.6491,2481.1,2481.0,0.8055]
[1749253578976,1.46513924,2481.4,2481.3,0.8054]
[1749253579178,2.68823181,2481.4,2481.2,0.80541]
[1749253579380,1.22309257,2481.3,2481.2,5.53141]
[1749253579682,2.02849257,2481.3,2481.2,5.53141]
[1749253579882,0.8054,2481.3,2481.2,5.53141]
[1749253580076,2.70093679,2481.3,2481.2,5.53141]
[1749253580380,1.4786,2481.3,2481.2,5.53141]
[1749253580775,0.6732,2481.3,2481.2,5.53141]
[1749253580981,1.4786,2481.3,2481.2,5.53141]
[1749253581186,0.6732,2481.3,2481.2,5.53141]
[1749253581586,0.6732,2481.3,2481.2,8.73921]
[1749253582182,1.4786,2481.3,2481.2,7.9338]
[1749253582882,1.4786,2481.3,2481.2,4.726]
[1749253583277,1.4786,2481.3,2481.2,5.53143]
[1749253591592,0.6732,2481.3,2481.2,5.53143]
[1749253592594,1.4786,2481.3,2481.2,5.53143]
[1749253594688,2.72172149,2481.3,2481.2,5.53143]
[1749253594896,1.4786,2481.3,2481.2,5.53143]
[1749253595297,0.6732,2481.3,2481.2,5.53143]
[1749253595592,1.91637636,2481.3,2481.2,5.53143]
[1749253595897,0.6732,2481.3,2481.2,5.53143]
[1749253596397,1.4786,2481.3,2481.2,5.53143]
[1749253596798,0.6732,2481.3,2481.2,8.73923]
[1749253596996,0.00604924,2481.4,2481.3,0.8054]
[1749253597194,0.00604924,2481.4,2481.3,2.7446]
[1749253598999,0.8054,2481.3,2481.2,4.01322]
[1749253599199,0.6473,2481.3,2481.2,8.73822]
[1749253601195,0.00604924,2481.4,2481.3,0.8054]
[1749253601407,0.00604924,2481.4,2481.3,2.7539]
[1749253602605,0.00604924,2481.4,2481.3,5.9617]
[1749253608298,0.00604924,2481.4,2481.3,4.685]
[1749253608503,0.00604924,2481.4,2481.3,4.0132]
[1749253608904,1.25217148,2481.4,2481.3,4.0132]
[1749253609105,1.90277148,2481.4,2481.3,4.0132]
[1749253610009,1.90277148,2481.4,2481.3,0.8054]
[1749253612817,1.90277148,2481.4,2481.3,4.0132]
[1749253615616,0.00604924,2481.4,2481.3,4.0132]
[1749253615817,0.00604924,2481.4,2481.3,5.3538]
[1749253625528,0.00604924,2481.4,2481.3,0.8054]
[1749253625731,0.00604924,2481.4,2481.3,4.0132]
[1749253626126,1.25306877,2481.4,2481.3,4.0132]
[1749253626328,0.00604924,2481.4,2481.3,4.0132]
[1749253626527,1.2533919,2481.4,2481.3,4.0132]
[1749253627435,0.00604924,2481.4,2481.3,4.0132]
[1749253627732,1.25338437,2481.4,2481.3,4.0132]
[1749253627933,0.00604924,2481.4,2481.3,4.0132]
[1749253628333,1.25338112,2481.4,2481.3,4.0132]
[1749253628529,1.25341068,2481.4,2481.3,4.0132]
[1749253628835,1.25341078,2481.4,2481.3,4.0132]
[1749253629837,0.00604924,2481.4,2481.3,4.0132]
[1749253630232,1.25339695,2481.4,2481.3,4.0132]
[1749253630429,0.00604924,2481.4,2481.3,4.0132]
[1749253632137,1.25371759,2481.4,2481.3,4.0132]
[1749253635742,0.00604924,2481.4,2481.3,4.0132]
[1749253636445,1.25351661,2481.4,2481.3,4.0132]
[1749253636647,0.00604924,2481.4,2481.3,4.0132]
[1749253638144,1.25337124,2481.4,2481.3,4.0132]
[1749253639045,0.00604924,2481.4,2481.3,4.0132]
[1749253641050,0.00604924,2481.4,2481.3,8.7312]
[1749253641941,1.25339014,2481.4,2481.3,8.7312]
[1749253642752,0.00604924,2481.4,2481.3,8.7312]
[1749253644255,0.00604924,2481.4,2481.3,5.5234]
[1749253644451,0.00604924,2481.4,2481.3,8.7312]
[1749253647653,0.00604924,2481.4,2481.3,5.5234]
[1749253648551,0.00604924,2481.4,2481.3,8.7312]
[1749253651651,1.27008759,2481.4,2481.3,8.7312]
[1749253654561,1.27008759,2481.4,2481.3,5.5234]
[1749253654758,1.27008759,2481.4,2481.3,8.7312]
[1749253659154,0.00604924,2481.4,2481.3,8.7312]
[1749253662868,0.00604924,2481.4,2481.3,4.0132]
[1749253663167,0.00604924,2481.4,2481.3,8.7312]
[1749253665565,6.26974642,2481.4,2481.0,4.718]
[1749253665762,0.80547,2481.1,2481.0,4.718]
[1749253665963,2.06916718,2481.1,2481.0,4.718]
[1749253666461,2.06916718,2481.1,2481.0,5.5235]
[1749253666662,1.26369718,2481.1,2481.0,5.5235]
[1749253667464,2.61019718,2481.1,2481.0,5.5235]
[1749253669171,1.3808,2481.3,2481.2,0.80544]
[1749253669359,2.6430802,2481.3,2481.2,0.80544]
[1749253670173,3.9500802,2481.3,2481.2,0.80544]
[1749253673676,4.7554802,2481.3,2481.2,0.80544]
[1749253673877,3.9500802,2481.3,2481.2,0.80544]
[1749253674079,4.7554802,2481.3,2481.2,0.80544]
[1749253674479,3.9500802,2481.3,2481.2,0.80544]
[1749253675376,4.7554802,2481.3,2481.2,0.80544]
[1749253676969,4.7554802,2481.3,2481.2,4.01324]
[1749253678675,4.7554802,2481.3,2481.2,0.80544]
[1749253679078,3.9500802,2481.3,2481.2,0.80544]
[1749253679374,2.6430802,2481.3,2481.2,0.80544]
[1749253679967,2.6430802,2481.3,2481.2,4.01324]
[1749253680173,1.2622802,2481.3,2481.2,4.01324]
[1749253680873,0.00604924,2481.4,2481.3,0.8054]
[1749253681073,0.6487,2481.8,2481.7,0.80527]
[1749253681382,0.6487,2481.8,2481.7,5.52027]
[1749253681776,0.6487,2481.8,2481.7,8.72807]
[1749253684683,0.00604924,2482.0,2481.9,0.80521]
[1749253684978,0.64204924,2482.0,2481.9,0.80521]
[1749253685178,1.90197763,2482.0,2481.9,0.80521]
[1749253689885,0.64204924,2482.0,2481.9,0.80521]
[1749253690386,0.00604924,2482.0,2481.9,0.80521]
[1749253690587,0.00604924,2482.0,2481.9,2.18291]
[1749253694690,0.6928,2482.7,2482.6,0.80498]
[1749253695082,9.78,2483.3,2482.9,0.80485]
[1749253695289,0.80482,2483.1,2482.8,4.714]
[1749253695484,2.06434288,2483.0,2482.8,5.5189]
[1749253695783,0.80487,2483.0,2482.8,5.5189]
[1749253695982,0.6928,2482.9,2482.8,5.5189]
[1749253697192,0.80492,2482.8,2482.7,0.00604924]
[1749253697490,0.80492,2482.8,2482.7,4.71604924]
[1749253697691,0.80492,2482.8,2482.7,5.52099924]
[1749253697887,2.15762,2482.8,2482.7,5.52099924]
[1749253699092,1.3527,2482.8,2482.7,5.52099924]
[1749253699495,1.49771,2482.9,2482.8,0.80492]
[1749253700093,0.76413351,2482.9,2482.8,0.80492]
[1749253701391,1.56901351,2482.9,2482.8,0.80492]
[1749253701597,0.76413351,2482.9,2482.8,0.80492]
[1749253702695,1.56901351,2482.9,2482.8,0.80492]
[1749253705003,1.56901351,2482.9,2482.7,5.52096924]
[1749253705203,0.80492,2482.8,2482.7,5.52096924]
[1749253706102,1.56903351,2482.9,2482.8,0.80492]
[1749253709704,0.76413351,2482.9,2482.8,0.80492]
[1749253712407,0.80492,2482.8,2482.7,0.00604924]
[1749253712607,0.80492,2482.8,2482.7,4.71504924]
[1749253712912,2.06465757,2482.8,2482.7,4.71504924]
[1749253713505,2.0648145,2482.8,2482.7,5.51999924]
[1749253713706,0.80492,2482.8,2482.7,5.51999924]
[1749253714611,2.06519439,2482.8,2482.7,4.71504924]
[1749253715315,2.06519439,2482.8,2482.7,5.51999924]
[1749253717614,0.80492,2482.8,2482.7,5.51999924]
[1749253718214,2.06614131,2482.8,2482.7,5.51999924]
[1749253720719,2.06614131,2482.8,2482.7,4.71504924]
[1749253721112,2.01247,2482.6,2482.2,4.0129]
[1749253721417,1.26122131,2482.5,2482.0,5.51416]
[1749253721617,0.80514,2482.1,2482.0,5.51416]
[1749253722518,2.06880721,2482.1,2482.0,5.51416]
[1749253722721,0.80514,2482.1,2482.0,4.709]
[1749253723015,2.06848883,2482.1,2482.0,4.709]
[1749253723319,2.06848883,2482.1,2482.0,5.51418]
[1749253723519,2.06848883,2482.1,2482.0,4.709]
[1749253723712,2.75528883,2482.1,2482.0,4.709]
[1749253728921,2.75308597,2482.1,2482.0,4.709]
[1749253731517,0.80512,2482.2,2482.1,0.80512]
[1749253731826,2.06547003,2482.2,2482.1,0.80512]
[1749253733023,0.80514,2482.1,2482.0,5.51415]
[1749253733720,0.87647351,2482.1,2482.0,5.51415]
[1749253734524,0.07133351,2482.1,2482.0,5.51415]
[1749253734723,0.87647351,2482.1,2482.0,6.77935]
[1749253740716,0.07133351,2482.1,2482.0,6.77935]
[1749253742125,0.87647351,2482.1,2482.0,4.709]
[1749253742330,0.80521,2481.9,2481.8,8.72607924]
[1749253742628,0.80521,2481.9,2481.8,7.92084924]
[1749253743226,0.80521,2481.9,2481.8,8.72608924]
[1749253743524,0.80521,2481.9,2481.8,9.39848924]
[1749253744022,0.80521,2481.9,2481.8,8.59324924]
[1749253744227,0.80521,2481.9,2481.8,9.39848924]
[1749253744422,0.80521,2481.9,2481.8,6.19068924]
[1749253747026,0.80521,2481.9,2481.8,5.38544924]
[1749253748028,0.80521,2481.9,2481.8,5.51828924]
[1749253748334,2.08203393,2481.9,2481.8,4.71304924]
[1749253748537,4.02843393,2481.9,2481.8,0.00604924]
[1749253748738,0.80531,2481.6,2481.5,4.707]
[1749253749246,2.01342,2481.5,2481.2,4.707]
[1749253749540,0.8054,2481.3,2481.2,4.707]
[1749253749744,2.08222393,2481.3,2481.2,4.707]
[1749253751943,0.80547,2481.1,2481.0,0.00604924]
[1749253752541,2.080982,2481.1,2481.0,0.00604924]
[1749253754447,0.80547,2481.1,2481.0,0.00604924]
[1749253758048,10.28535753,2481.1,2481.0,0.00604924]
[1749253758246,9.01327,2481.1,2481.0,0.00604924]
[1749253758544,10.28528689,2481.1,2481.0,0.00604924]
[1749253758751,0.8056,2480.7,2480.6,4.708]
[1749253766648,5.0,2480.7,2480.4,0.00604924]
[1749253766854,0.80566,2480.5,2480.4,0.00604924]
[1749253767555,2.10626,2480.5,2480.4,0.00604924]
[1749253768754,6.58201632,2480.5,2480.4,0.00604924]
[1749253769354,2.01446,2480.2,2479.7,4.707]
[1749253769552,0.80589,2479.9,2479.8,0.80589]
[1749253769856,0.6666,2480.1,2479.9,0.80585]
[1749253769857,0.80585,2480.0,2479.9,0.80585]
[1749253770153,0.80586,2479.9,2479.7,5.5129]
[1749253770354,0.80586,2479.9,2479.7,6.8465]
[1749253770546,0.80589,2479.8,2479.7,6.8465]
[1749253771551,0.80588,2479.9,2479.8,0.80588]
[1749253771755,0.81189924,2480.0,2479.9,0.80586]
[1749253774458,0.81189924,2480.0,2479.8,1.3336]
[1749253774459,0.00604924,2480.0,2479.6,5.41304924]
[1749253774653,0.80592,2479.8,2479.7,0.80591]
[1749253777157,0.80588,2479.9,2479.8,0.80588]
[1749253777352,0.00604924,2480.0,2479.6,6.69364924]
[1749253777558,0.80591,2479.8,2479.7,0.8059]
[1749253778763,0.80587,2479.9,2479.8,0.80587]
[1749253779064,0.81188924,2480.0,2479.9,0.80586]
[1749253779261,1.27530208,2480.0,2479.9,0.80586]
[1749253779563,0.00604924,2480.0,2479.9,0.80586]
[1749253779863,0.00604924,2480.0,2479.9,2.86866]
[1749253781163,0.00604924,2480.0,2479.9,7.57666]
[1749253786966,0.80586,2479.9,2479.8,7.9158]
[1749253787168,2.71772429,2479.9,2479.8,7.9158]
[1749253787360,2.71772429,2479.9,2479.8,3.2078]
[1749253788067,2.71772429,2479.9,2479.8,4.01369]
[1749253788267,2.71772429,2479.9,2479.8,3.2078]
[1749253789968,2.71772429,2479.9,2479.8,4.01369]
[1749253789969,1.91186429,2479.9,2479.8,4.01369]
[1749253790171,2.71772429,2479.9,2479.8,4.01369]
[1749253790364,1.91186429,2479.9,2479.8,4.01369]
[1749253790763,2.71772429,2479.9,2479.8,4.01369]
[1749253791065,2.71842864,2479.9,2479.8,4.01369]
[1749253791767,1.91256864,2479.9,2479.8,4.01369]
[1749253792269,2.71842864,2479.9,2479.8,4.01369]
[1749253794870,2.71842864,2479.9,2479.8,0.80589]
[1749253796473,1.44466,2479.9,2479.8,0.80589]
[1749253796674,2.72038067,2479.9,2479.8,0.80589]
[1749253797575,0.80589,2479.8,2479.7,5.51391]
[1749253797775,2.08161067,2479.8,2479.7,4.708]
[1749253797975,2.08161067,2479.8,2479.7,5.51392]
[1749253799871,1.27572067,2479.8,2479.7,5.51392]
[1749253800068,1.27572067,2479.8,2479.7,6.87452]
[1749253800375,1.27612299,2479.9,2479.8,0.80589]
[1749253800673,1.27607684,2479.9,2479.8,2.16649]
[1749253800863,0.00604924,2480.0,2479.9,0.80586]
[1749253801067,0.00604924,2480.0,2479.9,5.37426]
[1749253801262,2.0879444,2480.0,2479.9,5.37426]
[1749253802574,0.80589,2479.8,2479.7,4.708]
[1749253802773,0.80592,2479.7,2479.6,0.00604924]
[1749253802970,7.20529516,2479.7,2479.6,0.00604924]
[1749253804180,3.99749516,2479.7,2479.6,0.00604924]
[1749253807980,7.20529516,2479.7,2479.6,0.00604924]
[1749253809273,0.80605,2479.3,2479.2,4.708]
[1749253809476,0.80612,2479.1,2479.0,3.2078]
[1749253809675,2.08219516,2479.1,2479.0,3.2078]
[1749253810385,2.08219516,2479.1,2479.0,4.01395]
[1749253810580,1.27607516,2479.1,2479.0,4.01395]
[1749253810782,2.08219516,2479.1,2479.0,3.2078]
[1749253811274,0.80618,2478.9,2478.8,0.00604924]
[1749253811773,2.08225516,2478.9,2478.8,0.00604924]
[1749253815487,0.80618,2478.9,2478.8,0.00604924]
[1749253815680,3.2078,2479.1,2478.8,0.00604924]
[1749253815875,1.26944919,2479.0,2478.9,0.80618]
[1749253816085,1.45619,2479.2,2479.1,0.80612]
[1749253816281,2.07567926,2479.2,2479.1,0.80612]
[1749253816480,1.26958926,2479.2,2479.1,0.80612]
[1749253816685,1.4479,2479.5,2479.1,1.3455]
[1749253817076,1.4479,2479.5,2479.4,0.80602]
[1749253817279,0.80603,2479.4,2479.3,0.80602]
[1749253817480,0.80603,2479.4,2479.3,2.15152]
[1749253817681,0.80603,2479.4,2479.3,2.79812]
[1749253818882,0.80603,2479.4,2479.3,1.9921]
[1749253819086,0.80612,2479.1,2478.9,0.6376]
[1749253819279,0.80612,2479.1,2479.0,4.709]
[1749253820387,0.80611,2479.2,2479.0,0.80615]
[1749253821193,0.80612,2479.1,2479.0,0.80615]
[1749253822591,0.6419,2479.5,2479.1,0.80611]
[1749253822794,0.80603,2479.4,2479.3,0.80604]
[1749253822989,1.44791,2479.5,2479.0,3.2078]
[1749253823289,1.44791,2479.5,2479.1,1.3929]
[1749253823492,1.44791,2479.5,2479.4,0.80602]
[1749253823690,2.71927538,2479.5,2479.4,0.80602]
[1749253824092,1.91326538,2479.5,2479.4,0.80602]
[1749253824486,1.27136538,2479.5,2479.4,0.80602]
[1749253825091,2.07735538,2479.5,2479.4,0.80602]
[1749253826998,2.0779624,2479.5,2479.4,0.80602]
[1749253827204,2.0779624,2479.5,2479.3,0.80603]
[1749253827205,0.80602,2479.4,2479.3,0.80603]
[1749253827396,0.80601,2479.5,2479.4,0.80601]
[1749253827594,2.0782545,2479.5,2479.4,0.80601]
[1749253827794,2.0782545,2479.5,2479.1,1.3929]
[1749253827994,0.80601,2479.5,2479.4,0.80602]
[1749253828495,2.07824342,2479.5,2479.4,0.80602]
[1749253828687,2.07824342,2479.5,2479.4,2.82652]
[1749253830499,2.07824342,2479.5,2479.4,3.47732]
[1749253832603,2.07824342,2479.5,2479.4,2.6713]
[1749253836608,2.07824342,2479.5,2479.4,3.47732]
[1749253836999,2.07824342,2479.5,2479.4,2.6713]
[1749253837702,2.07824342,2479.5,2479.4,3.47732]
[1749253837905,2.07824342,2479.5,2479.4,2.6713]
[1749253838103,2.07963493,2479.5,2479.4,2.6713]
[1749253842502,2.07963493,2479.5,2479.4,1.3211]
[1749253843704,1.27362493,2479.5,2479.4,2.12712]
[1749253843906,0.00604924,2480.0,2479.9,0.80586]
[1749253844108,2.08619888,2480.0,2479.9,0.80586]
[1749253844407,0.80586,2479.9,2479.8,1.50339]
[1749253844612,2.08016964,2479.9,2479.8,1.50339]
[1749253844810,2.08016964,2479.9,2479.8,0.6975]
[1749253845204,2.08016964,2479.9,2479.8,1.50339]
[1749253845512,2.08016964,2479.9,2479.8,0.6975]
[1749253846309,2.08016964,2479.9,2479.8,2.0427]
[1749253847314,2.08016964,2479.9,2479.8,0.6975]
[1749253847811,0.80589,2479.8,2479.7,3.2078]
[1749253848111,2.08019964,2479.8,2479.7,3.2078]
[1749253848609,2.08019964,2479.8,2479.6,5.3746]
[1749253848610,0.80599,2479.5,2479.4,3.2078]
[1749253848811,2.08045625,2479.5,2479.4,3.2078]
[1749253856820,0.80605,2479.3,2479.2,4.717]
[1749253857020,2.08051625,2479.3,2479.2,4.717]
[1749253857915,2.08051625,2479.3,2479.2,5.52308]
[1749253858917,1.27446625,2479.3,2478.9,2.0099]
[1749253859117,1.27446625,2479.3,2478.8,3.21384924]
[1749253859118,0.80612,2479.1,2479.0,4.712]
[1749253859320,2.08058625,2479.1,2479.0,4.712]
[1749253859620,0.80612,2479.1,2479.0,4.712]
[1749253859822,2.08069274,2479.1,2479.0,4.712]
[1749253861225,0.80618,2478.9,2478.8,3.21384924]
[1749253861423,2.08075274,2478.9,2478.8,3.21384924]
[1749253862827,5.28855274,2478.9,2478.8,0.00604924]
[1749253863430,0.80638,2478.3,2478.2,4.713]
[1749253864030,0.80638,2478.3,2478.2,5.51941]
[1749253865029,1.48777,2478.4,2478.3,0.80638]
[1749253865227,1.48777,2478.4,2478.2,5.51939]
[1749253865429,0.80638,2478.3,2478.2,5.51939]
[1749253866032,0.80638,2478.3,2478.2,4.713]
[1749253866531,0.80638,2478.3,2478.2,5.51941]
[1749253867830,0.6814,2478.4,2478.2,5.51941]
[1749253868031,0.80638,2478.3,2478.2,5.51941]
[1749253869531,1.48775,2478.4,2478.2,5.51941]
[1749253870137,1.48775,2478.4,2478.3,0.80638]
[1749253871431,0.6814,2478.4,2478.3,0.80638]
[1749253872333,1.48774,2478.4,2478.3,0.80638]
[1749253874339,0.6814,2478.4,2478.3,0.80638]
[1749253875038,1.48774,2478.4,2478.3,0.80638]
[1749253876140,0.6814,2478.4,2478.3,0.80638]
[1749253876438,1.48774,2478.4,2478.3,0.80638]
[1749253878143,0.6814,2478.4,2478.3,0.80638]
[1749253878439,1.48774,2478.4,2478.3,0.80638]
[1749253879944,0.6814,2478.4,2478.3,0.80638]
[1749253881135,0.00604924,2478.5,2478.4,0.80634]
[1749253881345,0.00604924,2478.5,2478.4,2.07344]
[1749253882036,0.6831,2479.0,2478.9,0.80618]
[1749253882231,3.2078,2479.2,2478.8,7.9188]
[1749253882539,1.28206137,2479.1,2478.8,7.9188]
[1749253882740,0.80616,2479.0,2478.9,0.80617]
[1749253882940,1.48716,2479.0,2478.9,0.80617]
[1749253883735,0.681,2479.0,2478.9,0.80617]
[1749253884839,3.89484924,2479.2,2478.9,1.3661]
[1749253885035,1.28297085,2479.1,2479.0,0.80612]
[1749253885235,2.08909085,2479.1,2479.0,0.80612]
[1749253885436,2.08909085,2479.1,2479.0,0.6318]
[1749253885743,0.80618,2478.9,2478.8,8.725]
[1749253885939,0.80618,2478.9,2478.8,5.5172]
[1749253886137,0.80618,2478.9,2478.8,4.71]
[1749253886440,2.09019312,2478.9,2478.8,4.71]
[1749253887545,0.80621,2478.8,2478.7,0.81228924]
[1749253887843,1.48631,2478.8,2478.7,5.52228924]
[1749253888439,1.48631,2478.8,2478.7,4.71604924]
[1749253888440,2.77179699,2478.8,2478.7,4.71604924]
[1749253888736,2.77179699,2478.8,2478.7,0.00604924]
[1749253890141,4.12029699,2478.8,2478.7,0.00604924]
[1749253890644,0.80634,2478.4,2478.3,4.71]
[1749253890830,2.09182699,2478.4,2478.3,4.71]
[1749253892644,2.09182699,2478.4,2478.3,5.51638]
[1749253892847,2.09182699,2478.4,2478.3,4.71]
[1749253893344,2.09182699,2478.4,2478.3,5.51638]
[1749253894442,2.09182699,2478.4,2478.3,4.71]
[1749253895945,0.80642,2478.2,2478.1,5.51641]
[1749253896142,1.4834,2478.3,2478.2,0.80641]
[1749253896341,2.77391081,2478.3,2478.2,0.80641]
[1749253899646,1.96751081,2478.3,2478.2,0.80641]
[1749253901047,1.96676986,2478.3,2478.2,0.80641]
[1749253901442,2.77314986,2478.3,2478.2,0.80641]
[1749253902652,1.96676986,2478.3,2478.2,0.80641]
[1749253903551,2.77314986,2478.3,2478.2,0.80641]
[1749253903958,1.96676986,2478.3,2478.2,0.80641]
[1749253905353,2.77314986,2478.3,2478.2,0.80641]
[1749253906756,1.96676986,2478.3,2478.2,0.80641]
[1749253907858,2.77314986,2478.3,2478.2,0.80641]
[1749253908260,1.96676986,2478.3,2478.2,0.80641]
[1749253908763,2.77314986,2478.3,2478.2,0.80641]
[1749253909454,2.77314986,2478.3,2478.2,4.01421]
[1749253910564,1.96676986,2478.3,2478.2,4.01421]
[1749253911462,2.77314986,2478.3,2478.2,4.01421]
[1749253915368,1.28976986,2478.3,2478.2,4.01421]
[1749253915568,1.28976986,2478.3,2478.2,5.28161]
[1749253920166,2.09614986,2478.3,2478.2,5.28161]
[1749253920371,2.09614986,2478.3,2478.2,9.99161]
[1749253921277,1.28976986,2478.3,2478.2,9.99161]
[1749253921481,2.09614986,2478.3,2478.2,9.99161]
[1749253921676,2.09614986,2478.3,2478.2,7.9178]
[1749253922980,2.09614986,2478.3,2478.2,3.2078]
[1749253923775,2.09614986,2478.3,2478.2,4.01421]
[1749253924182,2.09614986,2478.3,2478.2,0.80641]
[1749253924480,1.28976986,2478.3,2478.2,0.80641]
[1749253924869,1.28976986,2478.3,2478.2,2.12781]
[1749253925070,2.09614986,2478.3,2478.2,2.12781]
[1749253925682,2.09614986,2478.3,2478.2,0.80641]
[1749253931082,1.28976986,2478.3,2478.2,0.80641]
[1749253932081,1.28976986,2478.3,2478.2,2.10011]
[1749253932390,2.09614986,2478.3,2478.2,2.10011]
[1749253932682,2.09614986,2478.3,2478.2,0.80641]
[1749253934384,2.09614986,2478.3,2478.1,8.72423]
[1749253934385,0.80641,2478.2,2478.1,8.72423]
[1749253934583,2.73957986,2478.2,2478.1,7.9178]
[1749253935379,2.73957986,2478.2,2478.1,8.72424]
[1749253935981,1.93316986,2478.2,2478.1,8.72424]
[1749253936284,1.28976986,2478.2,2478.1,8.72424]
[1749253936478,0.80633,2478.5,2478.1,10.08104]
[1749253936479,1.29383706,2478.4,2478.1,10.08104]
[1749253936781,1.29383706,2478.3,2478.2,0.80641]
[1749253936983,1.29383706,2478.3,2478.2,1.47631]
[1749253937283,0.80633,2478.5,2478.4,0.80634]
[1749253937583,2.10013841,2478.5,2478.4,0.80634]
[1749253939787,1.29380841,2478.5,2478.4,4.01414]
[1749253940088,2.10011841,2478.5,2478.4,4.01414]
[1749253940588,1.29380841,2478.5,2478.4,4.01414]
[1749253941387,2.10011841,2478.5,2478.4,4.01414]
[1749253942384,2.10011841,2478.5,2478.4,8.72414]
[1749253945691,2.10011841,2478.5,2478.4,4.71]
[1749253945990,0.80641,2478.2,2478.1,4.709]
[1749253946290,2.12727978,2478.2,2478.1,4.709]
[1749253946488,2.12727978,2478.2,2477.8,3.2078]